lending/lending_fUSD_20250429
["ID","MTS","AMOUNT","RATE_DAILY","PERIOD"]
[359280449,1745891446597,-359.43964969,0.0002767,2]
[359280450,1745891446608,-730.68,0.0002767,2]
[359280451,1745891446618,-470.0,0.0002767,2]
[359280452,1745891446629,-493.24,0.0002767,2]
[359280453,1745891446642,-470.0,0.0002767,2]
[359280454,1745891446652,-615.87202798,0.0002767,2]
[359280455,1745891446662,-470.0,0.0002767,2]
[359280457,1745891446672,-470.0,0.0002767,2]
[359280459,1745891446681,-470.0,0.0002767,2]
[359280460,1745891446691,-534.35,0.0002767,2]
[359280461,1745891446701,-470.0,0.0002767,2]
[359280462,1745891446711,-470.0,0.0002767,2]
[359280464,1745891446721,-470.0,0.0002767,2]
[359280465,1745891446731,-411.5805543,0.0002767,2]
[359280466,1745891446744,-470.0,0.0002767,2]
[359280467,1745891446754,-470.0,0.0002767,2]
[359280469,1745891446767,-470.0,0.0002767,2]
[359280471,1745891446777,-470.0,0.0002767,2]
[359280473,1745891446787,-599.0,0.0002767,2]
[359280475,1745891446801,-707.83,0.0002767,2]
[359280476,1745891446811,-470.0,0.0002767,2]
[359280478,1745891446822,-892.56,0.0002767,2]
[359280480,1745891446833,-470.0,0.0002767,2]
[359280482,1745891446844,-484.16,0.0002767,2]
[359280483,1745891446855,-470.0,0.0002767,2]
[359280484,1745891446865,-706.51,0.0002767,2]
[359280485,1745891446877,-470.0,0.0002767,2]
[359280487,1745891446886,-631.09,0.0002767,2]
[359280489,1745891446897,-622.66,0.0002767,2]
[359280490,1745891446908,-731.19,0.0002767,2]
[359280491,1745891446918,-470.0,0.0002767,2]
[359280492,1745891446929,-131309.72,0.0002767,2]
[359280493,1745891446939,-470.0,0.0002767,2]
[359280494,1745891446949,-17218.54,0.0002767,2]
[359280495,1745891446959,-551.16,0.0002767,2]
[359280496,1745891446969,-470.0,0.0002767,2]
[359280497,1745891446978,-500.0,0.0002767,2]
[359280498,1745891446988,-746.58,0.0002767,2]
[359280499,1745891446997,-829.18,0.0002767,2]
[359280500,1745891447007,-470.0,0.0002767,2]
[359280501,1745891447016,-582.32,0.0002767,2]
[359280502,1745891447026,-661.28,0.0002767,2]
[359280503,1745891447036,-470.0,0.0002767,2]
[359280504,1745891447046,-470.0,0.0002767,2]
[359280505,1745891447056,-760.0,0.0002767,2]
[359280506,1745891447067,-572.98,0.0002767,2]
[359280507,1745891447077,-1706.88,0.0002767,2]
[359280508,1745891447087,-470.0,0.0002767,2]
[359280509,1745891447097,-470.0,0.0002767,2]
[359280510,1745891447107,-830.4,0.0002767,2]
[359280511,1745891447117,-470.0,0.0002767,2]
[359280512,1745891447127,-470.0,0.0002767,2]
[359280513,1745891447137,-1621.51,0.0002767,2]
[359280514,1745891447148,-573.74,0.0002767,2]
[359280515,1745891447158,-583.09,0.0002767,2]
[359280516,1745891447168,-470.0,0.0002767,2]
[359280517,1745891447179,-470.0,0.0002767,2]
[359280518,1745891447188,-470.0,0.0002767,2]
[359280519,1745891447197,-654.01,0.0002767,2]
[359280520,1745891447207,-470.0,0.0002767,2]
[359280521,1745891447216,-265.34594132,0.0002767,2]
[359280522,1745891447226,-470.0,0.0002767,2]
[359280523,1745891447235,-587.58,0.0002767,2]
[359280524,1745891447245,-825.51,0.0002767,2]
[359280525,1745891447254,-1262.26,0.0002767,2]
[359280526,1745891447264,-492.78,0.0002767,2]
[359280527,1745891447274,-470.0,0.0002767,2]
[359280528,1745891447284,-874.35,0.0002767,2]
[359280529,1745891447293,-470.0,0.0002767,2]
[359280530,1745891447360,-4589.67,0.0002767,2]
[359280531,1745891447368,-470.0,0.0002767,2]
[359280532,1745891447377,-689.95,0.0002767,2]
[359280533,1745891447385,-470.0,0.0002767,2]
[359280534,1745891447394,-470.0,0.0002767,2]
[359280535,1745891447403,-1187.94,0.0002767,2]
[359280536,1745891447411,-685.45,0.0002767,2]
[359280537,1745891447420,-475.42,0.0002767,2]
[359280538,1745891447428,-3701.31,0.0002767,2]
[359280539,1745891447437,-1069.98,0.0002767,2]
[359280540,1745891447446,-652.76,0.0002767,2]
[359280541,1745891447455,-524.14,0.0002767,2]
[359280542,1745891447464,-1325.98,0.0002767,2]
[359280543,1745891447473,-470.0,0.0002767,2]
[359280544,1745891447483,-470.0,0.0002767,2]
[359280545,1745891447492,-1133.42,0.0002767,2]
[359280546,1745891447502,-470.0,0.0002767,2]
[359280547,1745891447512,-470.0,0.0002767,2]
[359280548,1745891447522,-470.0,0.0002767,2]
[359280549,1745891447531,-1236.99,0.0002767,2]
[359280550,1745891447541,-1544.01,0.0002767,2]
[359280551,1745891447550,-592.57,0.0002767,2]
[359280552,1745891447560,-470.0,0.0002767,2]
[359280553,1745891447569,-2592.3,0.0002767,2]
[359280554,1745891447579,-3608.48,0.0002767,2]
[359280555,1745891447589,-470.0,0.0002767,2]
[359280556,1745891447599,-470.0,0.0002767,2]
[359280557,1745891447608,-470.0,0.0002767,2]
[359280558,1745891447618,-696.97,0.0002767,2]
[359280559,1745891447627,-2078.86,0.0002767,2]
[359280560,1745891447636,-794.88,0.0002767,2]
[359280561,1745891447646,-470.0,0.0002767,2]
[359280562,1745891447655,-1330.27,0.0002767,2]
[359280563,1745891447664,-636.72,0.0002767,2]
[359280564,1745891447674,-603.25,0.0002767,2]
[359280565,1745891447683,-511.97,0.0002767,2]
[359280566,1745891447692,-470.0,0.0002767,2]
[359280567,1745891447701,-470.0,0.0002767,2]
[359280568,1745891447710,-470.0,0.0002767,2]
[359280569,1745891447720,-470.0,0.0002767,2]
[359280570,1745891447729,-958.25,0.0002767,2]
[359280571,1745891447739,-735.84,0.00027671,2]
[359280572,1745891447748,-470.0,0.00027671,2]
[359280573,1745891447759,-470.0,0.00027671,2]
[359280574,1745891447770,-1000.0,0.00027671,2]
[359280575,1745891447779,-513.1,0.00027671,2]
[359280576,1745891447788,-470.0,0.00027671,2]
[359280577,1745891447798,-470.0,0.00027671,2]
[359280578,1745891447807,-789.47,0.00027671,2]
[359280579,1745891447817,-470.0,0.00027671,2]
[359280580,1745891447826,-470.0,0.00027671,2]
[359280581,1745891447835,-521.81,0.00027671,2]
[359280582,1745891447845,-470.0,0.00027671,2]
[359280583,1745891447854,-472.95,0.00027671,2]
[359280584,1745891447863,-470.0,0.00027671,2]
[359280585,1745891447873,-470.0,0.00027671,2]
[359280586,1745891447882,-504.73,0.00027671,2]
[359280587,1745891447891,-470.0,0.00027671,2]
[359280588,1745891447901,-470.0,0.00027671,2]
[359280589,1745891447910,-470.0,0.00027671,2]
[359280590,1745891447920,-470.0,0.00027671,2]
[359280591,1745891447929,-470.0,0.00027671,2]
[359280592,1745891447939,-470.0,0.00027671,2]
[359280593,1745891447948,-470.0,0.00027671,2]
[359280594,1745891447958,-470.0,0.00027671,2]
[359280595,1745891447967,-470.0,0.00027671,2]
[359280596,1745891447976,-470.0,0.00027671,2]
[359280597,1745891447986,-470.0,0.00027671,2]
[359280598,1745891447995,-470.0,0.00027671,2]
[359280599,1745891448005,-470.0,0.00027671,2]
[359280600,1745891448014,-470.0,0.00027671,2]
[359280601,1745891448023,-470.0,0.00027671,2]
[359280602,1745891448032,-470.0,0.00027671,2]
[359280603,1745891448043,-470.0,0.00027671,2]
[359280604,1745891448052,-470.0,0.00027671,2]
[359280605,1745891448063,-470.0,0.00027671,2]
[359280606,1745891448072,-470.0,0.00027671,2]
[359280607,1745891448082,-470.0,0.00027671,2]
[359280608,1745891448092,-470.0,0.00027671,2]
[359280609,1745891448102,-470.0,0.00027671,2]
[359280610,1745891448112,-470.0,0.00027671,2]
[359280611,1745891448123,-470.0,0.00027671,2]
[359280612,1745891448133,-470.0,0.00027671,2]
[359280613,1745891448142,-470.0,0.00027671,2]
[359280614,1745891448152,-470.0,0.00027671,2]
[359280615,1745891448161,-470.0,0.00027671,2]
[359280616,1745891448172,-521.34,0.00027671,2]
[359280617,1745891448182,-470.0,0.00027671,2]
[359280618,1745891448192,-470.0,0.00027671,2]
[359280619,1745891448202,-470.0,0.00027671,2]
[359280620,1745891448211,-470.0,0.00027671,2]
[359280621,1745891448220,-470.0,0.00027671,2]
[359280622,1745891448230,-470.0,0.00027671,2]
[359280623,1745891448239,-470.0,0.00027671,2]
[359280624,1745891448255,-470.0,0.00027671,2]
[359280625,1745891448265,-470.0,0.00027671,2]
[359280626,1745891448275,-470.0,0.00027671,2]
[359280627,1745891448285,-484.3,0.00027671,2]
[359280628,1745891448294,-470.0,0.00027671,2]
[359280629,1745891448304,-470.0,0.00027671,2]
[359280630,1745891448315,-470.0,0.00027671,2]
[359280631,1745891448324,-470.0,0.00027671,2]
[359280632,1745891448333,-470.0,0.00027671,2]
[359280633,1745891448342,-571.14,0.00027671,2]
[359280634,1745891448352,-470.0,0.00027671,2]
[359280635,1745891448361,-545.09,0.00027671,2]
[359280636,1745891448371,-470.0,0.00027671,2]
[359280637,1745891448381,-409.9896272,0.00027671,2]
[359280638,1745891448391,-470.0,0.00027671,2]
[359280639,1745891448402,-470.0,0.00027671,2]
[359280640,1745891448412,-661.1,0.00027671,2]
[359280641,1745891448421,-205.85427131,0.00027671,2]
[359280642,1745891448431,-295.71102795,0.00027671,2]
[359280643,1745891448441,-470.0,0.00027671,2]
[359280644,1745891448451,-1617.95,0.00027671,2]
[359280645,1745891448462,-470.0,0.00027671,2]
[359280646,1745891448472,-156.08076866,0.00027671,2]
[359280647,1745891448483,-470.0,0.00027671,2]
[359280648,1745891448492,-470.0,0.00027671,2]
[359280649,1745891448502,-470.0,0.00027671,2]
[359280650,1745891448512,-518.75,0.00027671,2]
[359280651,1745891448522,-470.0,0.00027671,2]
[359280652,1745891448532,-470.0,0.00027671,2]
[359280653,1745891448542,-470.0,0.00027671,2]
[359280654,1745891448552,-470.0,0.00027671,2]
[359280655,1745891448563,-470.0,0.00027671,2]
[359280656,1745891448573,-470.0,0.00027671,2]
[359280657,1745891448583,-789.9,0.00027671,2]
[359280658,1745891448596,-470.0,0.00027671,2]
[359280659,1745891448606,-470.0,0.00027671,2]
[359280660,1745891448616,-470.0,0.00027671,2]
[359280661,1745891448626,-470.0,0.00027671,2]
[359280662,1745891448636,-470.0,0.00027671,2]
[359280663,1745891448646,-470.0,0.00027671,2]
[359280664,1745891448656,-845.94,0.00027671,2]
[359280665,1745891448666,-470.0,0.00027671,2]
[359280666,1745891448675,-470.0,0.00027671,2]
[359280667,1745891448686,-493.82,0.00027671,2]
[359280668,1745891448696,-470.0,0.00027671,2]
[359280669,1745891448706,-470.0,0.00027671,2]
[359280670,1745891448716,-470.0,0.00027671,2]
[359280671,1745891448725,-470.0,0.00027671,2]
[359280672,1745891448735,-706.07,0.00027671,2]
[359280673,1745891448745,-575.23,0.00027671,2]
[359280674,1745891448759,-470.0,0.00027671,2]
[359280675,1745891448769,-470.0,0.00027671,2]
[359280676,1745891448779,-470.0,0.00027671,2]
[359280677,1745891448790,-633.13,0.00027671,2]
[359280678,1745891448802,-470.0,0.00027671,2]
[359280679,1745891448812,-470.0,0.00027671,2]
[359280680,1745891448823,-470.0,0.00027671,2]
[359280681,1745891448834,-547.18,0.00027671,2]
[359280682,1745891448844,-470.0,0.00027671,2]
[359280683,1745891448854,-470.0,0.00027671,2]
[359280684,1745891448864,-470.0,0.00027671,2]
[359280685,1745891448874,-470.0,0.00027671,2]
[359280686,1745891448884,-470.0,0.00027671,2]
[359280687,1745891448894,-470.0,0.00027671,2]
[359280688,1745891448904,-470.0,0.00027671,2]
[359280689,1745891448914,-470.0,0.00027671,2]
[359280690,1745891448925,-721.02,0.00027671,2]
[359280691,1745891448935,-470.0,0.00027671,2]
[359280692,1745891448945,-470.0,0.00027671,2]
[359280693,1745891448955,-470.0,0.00027671,2]
[359280694,1745891448966,-470.0,0.00027671,2]
[359280695,1745891448976,-810.22,0.00027671,2]
[359280696,1745891448987,-470.0,0.00027671,2]
[359280697,1745891448997,-470.0,0.00027671,2]
[359280698,1745891449007,-608.48,0.00027671,2]
[359280699,1745891449017,-470.0,0.00027671,2]
[359280700,1745891449030,-567.75,0.00027671,2]
[359280701,1745891449040,-470.0,0.00027671,2]
[359280702,1745891449051,-470.0,0.00027671,2]
[359280703,1745891449063,-470.0,0.00027671,2]
[359280704,1745891449073,-470.0,0.00027671,2]
[359280705,1745891449085,-470.0,0.00027671,2]
[359280706,1745891449095,-575.6,0.00027671,2]
[359280707,1745891449105,-504.66,0.00027671,2]
[359280708,1745891449116,-470.0,0.00027671,2]
[359280709,1745891449126,-470.0,0.00027671,2]
[359280710,1745891449135,-470.0,0.00027671,2]
[359280711,1745891449145,-669.21,0.00027671,2]
[359280712,1745891449156,-470.0,0.00027671,2]
[359280713,1745891449166,-501.59,0.00027671,2]
[359280714,1745891449177,-470.0,0.00027671,2]
[359280715,1745891449187,-470.0,0.00027671,2]
[359280716,1745891449197,-470.0,0.00027671,2]
[359280717,1745891449207,-575.94,0.00027671,2]
[359280718,1745891449217,-470.0,0.00027671,2]
[359280719,1745891449227,-470.0,0.00027671,2]
[359280720,1745891449236,-470.0,0.00027671,2]
[359280721,1745891449246,-694.09,0.00027671,2]
[359280722,1745891449256,-470.0,0.00027671,2]
[359280723,1745891449266,-436.29867245,0.00027671,2]
[359280724,1745891449276,-476.74,0.00027671,2]
[359280725,1745891449285,-470.0,0.00027671,2]
[359280726,1745891449295,-470.0,0.00027671,2]
[359280727,1745891449306,-470.0,0.00027671,2]
[359280728,1745891449316,-470.0,0.00027671,2]
[359280729,1745891449327,-698.7,0.00027671,2]
[359280730,1745891449337,-470.0,0.00027671,2]
[359280731,1745891449347,-470.0,0.00027671,2]
[359280732,1745891449357,-470.0,0.00027671,2]
[359280733,1745891449367,-470.0,0.00027671,2]
[359280734,1745891449376,-470.0,0.00027671,2]
[359280735,1745891449386,-470.0,0.00027671,2]
[359280736,1745891449396,-470.0,0.00027671,2]
[359280737,1745891449406,-470.0,0.00027671,2]
[359280738,1745891449415,-470.0,0.00027671,2]
[359280739,1745891449425,-470.0,0.00027671,2]
[359280740,1745891449435,-1073.63,0.00027671,2]
[359280741,1745891449445,-470.0,0.00027671,2]
[359280742,1745891449456,-470.0,0.00027671,2]
[359280743,1745891449467,-470.0,0.00027671,2]
[359280744,1745891449478,-470.0,0.00027671,2]
[359280745,1745891449488,-470.0,0.00027671,2]
[359280746,1745891449498,-678.29,0.00027671,2]
[359280747,1745891449508,-470.0,0.00027671,2]
[359280748,1745891449518,-470.0,0.00027671,2]
[359280749,1745891449528,-470.0,0.00027671,2]
[359280750,1745891449538,-470.0,0.00027671,2]
[359280751,1745891449548,-470.0,0.00027671,2]
[359280752,1745891449559,-470.0,0.00027671,2]
[359280753,1745891449570,-470.0,0.00027671,2]
[359280754,1745891449580,-470.0,0.00027671,2]
[359280755,1745891449591,-470.0,0.00027671,2]
[359280756,1745891449601,-470.0,0.00027671,2]
[359280757,1745891449611,-470.0,0.00027671,2]
[359280758,1745891449621,-470.0,0.00027671,2]
[359280759,1745891449631,-470.0,0.00027671,2]
[359280760,1745891449641,-470.0,0.00027671,2]
[359280761,1745891449651,-470.0,0.00027671,2]
[359280762,1745891449660,-470.0,0.00027671,2]
[359280763,1745891449670,-470.0,0.00027671,2]
[359280764,1745891449680,-470.92,0.00027671,2]
[359280765,1745891449690,-470.0,0.00027671,2]
[359280766,1745891449700,-470.0,0.00027671,2]
[359280767,1745891449710,-470.0,0.00027671,2]
[359280768,1745891449719,-470.0,0.00027671,2]
[359280769,1745891449729,-470.0,0.00027671,2]
[359280770,1745891449739,-470.0,0.00027671,2]
[359280771,1745891449748,-470.0,0.00027671,2]
[359280772,1745891449759,-470.0,0.00027671,2]
[359280773,1745891449769,-470.0,0.00027671,2]
[359280774,1745891449779,-695.67,0.00027671,2]
[359280775,1745891449790,-470.0,0.00027671,2]
[359280776,1745891449799,-470.0,0.00027671,2]
[359280777,1745891449811,-470.0,0.00027671,2]
[359280778,1745891449821,-470.0,0.00027671,2]
[359280779,1745891449831,-470.0,0.00027671,2]
[359280780,1745891449842,-470.0,0.00027671,2]
[359280781,1745891449853,-215.92371476,0.00027671,2]
[359280782,1745891449862,-470.0,0.00027671,2]
[359280783,1745891449872,-470.0,0.00027671,2]
[359280784,1745891449882,-470.0,0.00027671,2]
[359280785,1745891449892,-512.93,0.00027671,2]
[359280786,1745891449902,-470.0,0.00027671,2]
[359280787,1745891449913,-549.33,0.00027671,2]
[359280788,1745891449923,-470.0,0.00027671,2]
[359280789,1745891449934,-470.0,0.00027671,2]
[359280790,1745891449945,-470.0,0.00027671,2]
[359280791,1745891449956,-470.0,0.00027671,2]
[359280792,1745891449966,-490.0,0.00027671,2]
[359280793,1745891449976,-470.0,0.00027671,2]
[359280794,1745891449987,-482.27052174,0.00027671,2]
[359280795,1745891449998,-470.0,0.00027671,2]
[359280796,1745891450007,-470.0,0.00027671,2]
[359280797,1745891450018,-479.74559379,0.00027671,2]
[359280798,1745891450027,-470.0,0.00027671,2]
[359280799,1745891450037,-470.0,0.00027671,2]
[359280800,1745891450047,-489.74,0.00027671,2]
[359280801,1745891450058,-470.0,0.00027671,2]
[359280802,1745891450068,-470.0,0.00027671,2]
[359280803,1745891450078,-926.6,0.00027671,2]
[359280804,1745891450088,-470.0,0.00027671,2]
[359280805,1745891450098,-470.0,0.00027671,2]
[359280806,1745891450108,-470.0,0.00027671,2]
[359280807,1745891450119,-55510.47,0.00027671,2]
[359280808,1745891450128,-470.0,0.00027671,2]
[359280809,1745891450139,-470.0,0.00027671,2]
[359280810,1745891450148,-470.0,0.00027671,2]
[359280811,1745891450158,-470.0,0.00027671,2]
[359280812,1745891450168,-510.90685067,0.00027671,2]
[359280813,1745891450178,-470.0,0.00027671,2]
[359280814,1745891450188,-188.7517813,0.00027671,2]
[359280815,1745891450198,-275.49140507,0.00027671,2]
[359280816,1745891450208,-470.0,0.00027671,2]
[359280817,1745891450217,-470.0,0.00027671,2]
[359280818,1745891450227,-470.0,0.00027671,2]
[359280819,1745891450236,-470.0,0.00027671,2]
[359280820,1745891450246,-470.0,0.00027671,2]
[359280821,1745891450255,-470.0,0.00027671,2]
[359280822,1745891450265,-1415.32,0.00027671,2]
[359280823,1745891450274,-470.0,0.00027671,2]
[359280824,1745891450284,-470.0,0.00027671,2]
[359280825,1745891450295,-470.0,0.00027671,2]
[359280826,1745891450305,-470.0,0.00027671,2]
[359280827,1745891450315,-470.0,0.00027671,2]
[359280828,1745891450326,-618.86,0.00027671,2]
[359280829,1745891450338,-4571.21,0.00027671,2]
[359280830,1745891450349,-470.0,0.00027671,2]
[359280831,1745891450358,-470.0,0.00027671,2]
[359280832,1745891450368,-470.0,0.00027671,2]
[359280833,1745891450377,-1013.11,0.00027671,2]
[359280834,1745891450384,-470.0,0.00027671,2]
[359280835,1745891450392,-250.0,0.00027671,2]
[359280836,1745891450400,-470.0,0.00027671,2]
[359280837,1745891450410,-992.65,0.00027671,2]
[359280838,1745891450418,-586.6,0.00027671,2]
[359280839,1745891450426,-1684.71,0.00027671,2]
[359280840,1745891450434,-470.0,0.00027671,2]
[359280841,1745891450444,-470.0,0.00027671,2]
[359280842,1745891450454,-470.0,0.00027671,2]
[359280843,1745891450464,-470.0,0.00027671,2]
[359280844,1745891450473,-470.0,0.00027671,2]
[359280845,1745891450484,-14565.27,0.00027671,2]
[359280846,1745891450493,-470.0,0.00027671,2]
[359280847,1745891450503,-470.0,0.00027671,2]
[359280848,1745891450513,-470.0,0.00027671,2]
[359280849,1745891450522,-470.0,0.00027671,2]
[359280850,1745891450532,-724.463176,0.00027671,2]
[359280851,1745891450542,-470.0,0.00027671,2]
[359280852,1745891450552,-470.0,0.00027671,2]
[359280853,1745891450563,-470.0,0.00027671,2]
[359280854,1745891450573,-484.02516769,0.00027671,2]
[359280855,1745891450582,-470.0,0.00027671,2]
[359280856,1745891450592,-470.0,0.00027671,2]
[359280857,1745891450601,-470.0,0.00027671,2]
[359280858,1745891450611,-470.0,0.00027671,2]
[359280859,1745891450621,-470.0,0.00027671,2]
[359280860,1745891450631,-483.22024009,0.00027671,2]
[359280861,1745891450642,-470.0,0.00027671,2]
[359280862,1745891450813,-470.0,0.00027671,2]
[359280863,1745891450824,-499.1,0.00027671,2]
[359280864,1745891450835,-746.52,0.00027671,2]
[359280865,1745891450845,-293.13076229,0.00027671,2]
[359280866,1745891450855,-470.0,0.00027671,2]
[359280867,1745891450865,-470.0,0.00027671,2]
[359280868,1745891450875,-560.29,0.00027671,2]
[359280869,1745891450884,-470.0,0.00027671,2]
[359280870,1745891450895,-504.68,0.00027671,2]
[359280871,1745891450906,-470.0,0.00027671,2]
[359280872,1745891450915,-470.0,0.00027671,2]
[359280873,1745891450925,-558.42,0.00027671,2]
[359280874,1745891450935,-470.0,0.00027671,2]
[359280875,1745891450945,-470.0,0.00027671,2]
[359280876,1745891450954,-470.0,0.00027671,2]
[359280877,1745891450964,-5545.091631,0.00027671,2]
[359280878,1745891450974,-470.0,0.00027671,2]
[359280879,1745891450985,-470.0,0.00027671,2]
[359280880,1745891450995,-470.0,0.00027671,2]
[359280881,1745891451004,-470.0,0.00027671,2]
[359280882,1745891451015,-470.0,0.00027671,2]
[359280883,1745891451025,-1047.69,0.00027671,2]
[359280884,1745891451034,-300.0,0.00027671,2]
[359280885,1745891451043,-470.0,0.00027671,2]
[359280886,1745891451054,-470.0,0.00027671,2]
[359280887,1745891451064,-470.0,0.00027671,2]
[359280888,1745891451073,-470.0,0.00027671,2]
[359280889,1745891451083,-470.0,0.00027671,2]
[359280890,1745891451093,-470.0,0.00027671,2]
[359280891,1745891451103,-472.85,0.00027671,2]
[359280892,1745891451112,-470.0,0.00027671,2]
[359280893,1745891451122,-470.0,0.00027671,2]
[359280894,1745891451131,-470.0,0.00027671,2]
[359280895,1745891451141,-470.0,0.00027671,2]
[359280896,1745891451151,-1132.811667,0.00027671,2]
[359280897,1745891451162,-470.0,0.00027671,2]
[359280898,1745891451171,-470.0,0.00027671,2]
[359280899,1745891451181,-2265.36,0.00027671,2]
[359280900,1745891451191,-470.0,0.00027671,2]
[359280901,1745891451201,-470.0,0.00027671,2]
[359280902,1745891451210,-483.38,0.00027671,2]
[359280903,1745891451219,-1175.89,0.00027671,2]
[359280904,1745891451228,-470.0,0.00027671,2]
[359280905,1745891451237,-470.0,0.00027671,2]
[359280906,1745891451246,-866.46,0.00027671,2]
[359280907,1745891451256,-588.59,0.00027671,2]
[359280908,1745891451266,-470.0,0.00027671,2]
[359280909,1745891451275,-470.0,0.00027671,2]
[359280910,1745891451286,-470.0,0.00027671,2]
[359280911,1745891451296,-470.0,0.00027671,2]
[359280912,1745891451305,-699.58,0.00027671,2]
[359280913,1745891451315,-470.0,0.00027671,2]
[359280914,1745891451324,-470.0,0.00027671,2]
[359280915,1745891451334,-470.0,0.00027671,2]
[359280916,1745891451344,-470.0,0.00027671,2]
[359280917,1745891451353,-470.0,0.00027671,2]
[359280918,1745891451363,-470.0,0.00027671,2]
[359280919,1745891451372,-540.83,0.00027671,2]
[359280920,1745891451381,-679.4,0.00027671,2]
[359280921,1745891451390,-470.0,0.00027671,2]
[359280922,1745891451400,-470.0,0.00027671,2]
[359280923,1745891451409,-273.80774847,0.00027671,2]
[359280924,1745891451418,-470.0,0.00027671,2]
[359280925,1745891451428,-477.45,0.00027671,2]
[359280926,1745891451438,-470.0,0.00027671,2]
[359280927,1745891451448,-470.0,0.00027671,2]
[359280928,1745891451457,-470.0,0.00027671,2]
[359280929,1745891451467,-470.0,0.00027671,2]
[359280930,1745891451476,-520.07,0.00027671,2]
[359280931,1745891451486,-866.58,0.00027671,2]
[359280932,1745891451495,-742.91,0.00027671,2]
[359280933,1745891451504,-470.0,0.00027671,2]
[359280934,1745891451513,-470.0,0.00027671,2]
[359280935,1745891451523,-470.0,0.00027671,2]
[359280936,1745891451532,-470.0,0.00027671,2]
[359280937,1745891451541,-470.0,0.00027671,2]
[359280938,1745891451551,-470.0,0.00027671,2]
[359280939,1745891451561,-470.0,0.00027671,2]
[359280940,1745891451571,-470.0,0.00027671,2]
[359280941,1745891451580,-470.0,0.00027671,2]
[359280942,1745891451590,-470.0,0.00027671,2]
[359280943,1745891451599,-470.0,0.00027671,2]
[359280944,1745891451609,-470.0,0.00027671,2]
[359280945,1745891451620,-470.0,0.00027671,2]
[359280946,1745891451629,-470.0,0.00027671,2]
[359280947,1745891451638,-172.79117834,0.00027671,2]
[359280948,1745891451648,-470.0,0.00027671,2]
[359280949,1745891451657,-470.0,0.00027671,2]
[359280950,1745891451666,-470.0,0.00027671,2]
[359280951,1745891451675,-673.27,0.00027671,2]
[359280952,1745891451685,-470.0,0.00027671,2]
[359280953,1745891451694,-470.0,0.00027671,2]
[359280954,1745891451703,-1093.29,0.00027671,2]
[359280955,1745891451713,-470.0,0.00027671,2]
[359280956,1745891451722,-488.64,0.00027671,2]
[359280957,1745891451732,-470.0,0.00027671,2]
[359280958,1745891451741,-470.0,0.00027671,2]
[359280959,1745891451750,-941.22,0.00027671,2]
[359280960,1745891451761,-522.04,0.00027671,2]